[Event "*** Titled Tuesday Blitz"]
[Site "Chess.com"]
[Date "2020.04.28"]
[Round "7"]
[White "TerorPtica"]
[Black "Evgeny81"]
[Result "1/2-1/2"]
[WhiteElo "2894"]
[BlackElo "2701"]
[TimeControl "180+1"]
[EndTime "11:18:34 PDT"]
[Termination "Game drawn by repetition"]

1. d4 {[%clk 0:03:00.9]} 1... d5 {[%clk 0:02:59.4]} 2. c4 {[%clk 0:03:00.9]}
2... dxc4 {[%clk 0:02:59.8]} 3. e3 {[%clk 0:03:00.8]} 3... Nf6 {[%clk
0:02:59.9]} 4. Bxc4 {[%clk 0:03:01.2]} 4... e6 {[%clk 0:03:00.5]} 5. Nf3 {[%clk
0:03:01.8]} 5... a6 {[%clk 0:03:00.8]} 6. O-O {[%clk 0:03:01.9]} 6... b5 {[%clk
0:03:01]} 7. Be2 {[%clk 0:02:58.3]} 7... Bb7 {[%clk 0:03:01.5]} 8. a4 {[%clk
0:02:58.7]} 8... b4 {[%clk 0:03:01.3]} 9. b3 {[%clk 0:02:59]} 9... Nbd7 {[%clk
0:03:01.4]} 10. Bb2 {[%clk 0:02:59.6]} 10... c5 {[%clk 0:03:01.8]} 11. Nbd2
{[%clk 0:03:00.1]} 11... Be7 {[%clk 0:03:01.9]} 12. Rc1 {[%clk 0:02:56.9]} 12...
O-O {[%clk 0:03:02]} 13. Nc4 {[%clk 0:02:57.4]} 13... Bd5 {[%clk 0:02:58]} 14.
Nfd2 {[%clk 0:02:50.8]} 14... cxd4 {[%clk 0:02:40.4]} 15. Bxd4 {[%clk
0:02:50.3]} 15... Qb8 {[%clk 0:02:38]} 16. f3 {[%clk 0:02:45]} 16... Bc5 {[%clk
0:02:33.6]} 17. Bxc5 {[%clk 0:02:38.7]} 17... Nxc5 {[%clk 0:02:33.4]} 18. e4
{[%clk 0:02:39]} 18... Bxc4 {[%clk 0:02:18.7]} 19. Nxc4 {[%clk 0:02:20.2]} 19...
Qa7 {[%clk 0:02:07.6]} 20. Kh1 {[%clk 0:02:19.2]} 20... Rfd8 {[%clk 0:01:58.9]}
21. Qc2 {[%clk 0:02:19.5]} 21... h6 {[%clk 0:01:46.2]} 22. Rfd1 {[%clk 0:02:14]}
22... Rxd1+ {[%clk 0:01:44.8]} 23. Rxd1 {[%clk 0:02:14.9]} 23... Qc7 {[%clk
0:01:38.5]} 24. Nd6 {[%clk 0:01:57.2]} 24... Nfd7 {[%clk 0:01:30.8]} 25. f4
{[%clk 0:01:50.3]} 25... Qb6 {[%clk 0:00:53.1]} 26. e5 {[%clk 0:01:46.8]} 26...
Rd8 {[%clk 0:00:51.8]} 27. Bh5 {[%clk 0:01:40.6]} 27... Rf8 {[%clk 0:00:48.3]}
28. h3 {[%clk 0:01:28.2]} 28... Qc7 {[%clk 0:00:47]} 29. Kh2 {[%clk 0:01:03.7]}
29... a5 {[%clk 0:00:46.3]} 30. Bxf7+ {[%clk 0:00:58]} 30... Rxf7 {[%clk
0:00:45.7]} 31. Nxf7 {[%clk 0:00:58.5]} 31... Kxf7 {[%clk 0:00:46.4]} 32. Rxd7+
{[%clk 0:00:58.4]} 32... Qxd7 {[%clk 0:00:45.4]} 33. Qxc5 {[%clk 0:00:59]} 33...
Qd2 {[%clk 0:00:41.6]} 34. Qc7+ {[%clk 0:00:50.3]} 34... Kg6 {[%clk 0:00:38.6]}
35. Qc4 {[%clk 0:00:48.3]} 35... Qc3 {[%clk 0:00:38.1]} 36. Qe4+ {[%clk
0:00:44.4]} 36... Kf7 {[%clk 0:00:37.9]} 37. Qb7+ {[%clk 0:00:30.5]} 37... Kg6
{[%clk 0:00:38]} 38. Qe4+ {[%clk 0:00:25.8]} 38... Kf7 {[%clk 0:00:37.9]} 39. f5
{[%clk 0:00:20.6]} 39... exf5 {[%clk 0:00:30.5]} 40. Qxf5+ {[%clk 0:00:21.5]}
40... Ke7 {[%clk 0:00:30.8]} 41. e6 {[%clk 0:00:19.7]} 41... Qf6 {[%clk
0:00:26.3]} 42. Qxa5 {[%clk 0:00:11]} 42... Qf4+ {[%clk 0:00:25.8]} 43. Kh1
{[%clk 0:00:10.7]} 43... Qf1+ {[%clk 0:00:25.1]} 44. Kh2 {[%clk 0:00:10.8]}
44... Qf4+ {[%clk 0:00:24.8]} 45. Kh1 {[%clk 0:00:11]} 45... Qc1+ {[%clk
0:00:23.4]} 46. Kh2 {[%clk 0:00:10.9]} 46... Qf4+ {[%clk 0:00:23.9]} 1/2-1/2

[Event "*** Titled Tuesday Blitz"]
[Site "Chess.com"]
[Date "2020.04.28"]
[Round "7"]
[White "AminMolaei"]
[Black "theblitzchamp"]
[Result "0-1"]
[WhiteElo "2510"]
[BlackElo "2684"]
[TimeControl "180+1"]
[EndTime "11:18:34 PDT"]
[Termination "theblitzchamp won by resignation"]

1. d4 {[%clk 0:03:00.9]} 1... Nf6 {[%clk 0:03:00.1]} 2. c4 {[%clk 0:03:00.9]}
2... e6 {[%clk 0:03:00.7]} 3. g3 {[%clk 0:03:00.7]} 3... d5 {[%clk 0:02:57.8]}
4. Bg2 {[%clk 0:03:00.3]} 4... dxc4 {[%clk 0:02:58.2]} 5. Nf3 {[%clk 0:03:00.8]}
5... Be7 {[%clk 0:02:53.7]} 6. O-O {[%clk 0:03:00.1]} 6... O-O {[%clk
0:02:54.1]} 7. Qc2 {[%clk 0:03:00.4]} 7... Nc6 {[%clk 0:02:49.4]} 8. Qxc4 {[%clk
0:02:58.8]} 8... Qd5 {[%clk 0:02:49.2]} 9. Qa4 {[%clk 0:02:55.6]} 9... Qh5
{[%clk 0:02:32.8]} 10. Rd1 {[%clk 0:02:53.5]} 10... Bd7 {[%clk 0:02:30.5]} 11.
Qb3 {[%clk 0:02:51.7]} 11... Rab8 {[%clk 0:02:29.8]} 12. Bf4 {[%clk 0:02:50.6]}
12... Nd5 {[%clk 0:02:27.9]} 13. Nc3 {[%clk 0:02:45]} 13... Nxf4 {[%clk
0:02:22.5]} 14. gxf4 {[%clk 0:02:45.9]} 14... Qh6 {[%clk 0:02:01.1]} 15. e3
{[%clk 0:02:45.3]} 15... Bf6 {[%clk 0:01:58.3]} 16. Ne4 {[%clk 0:02:43.4]} 16...
Ne7 {[%clk 0:01:44.2]} 17. Nxf6+ {[%clk 0:02:15.9]} 17... Qxf6 {[%clk
0:01:43.8]} 18. Ne5 {[%clk 0:02:15.6]} 18... Rfd8 {[%clk 0:01:43.5]} 19. Rac1
{[%clk 0:02:11.2]} 19... c6 {[%clk 0:01:23.1]} 20. Kh1 {[%clk 0:02:03.1]} 20...
Nd5 {[%clk 0:01:23.1]} 21. Rg1 {[%clk 0:01:55.4]} 21... Be8 {[%clk 0:01:21.2]}
22. Be4 {[%clk 0:01:50]} 22... g6 {[%clk 0:01:20.4]} 23. a3 {[%clk 0:01:47.4]}
23... Qh4 {[%clk 0:01:20.3]} 24. Qc2 {[%clk 0:01:44.4]} 24... Rbc8 {[%clk
0:01:07.7]} 25. Rg3 {[%clk 0:01:40.8]} 25... Kf8 {[%clk 0:00:57.5]} 26. Rcg1
{[%clk 0:01:37.6]} 26... Rc7 {[%clk 0:00:56.8]} 27. Nf3 {[%clk 0:01:30.2]} 27...
Qh6 {[%clk 0:00:56]} 28. Ng5 {[%clk 0:01:27.9]} 28... Qg7 {[%clk 0:00:51]} 29.
Rh3 {[%clk 0:01:28]} 29... h6 {[%clk 0:00:49.5]} 30. Nf3 {[%clk 0:01:28.3]}
30... f5 {[%clk 0:00:48.1]} 31. Bd3 {[%clk 0:01:16.9]} 31... b6 {[%clk
0:00:47.7]} 32. b4 {[%clk 0:01:13]} 32... Rdc8 {[%clk 0:00:46.5]} 33. Ba6 {[%clk
0:01:08.6]} 33... Rd8 {[%clk 0:00:45.5]} 34. Bc4 {[%clk 0:01:07.8]} 34... Rdc8
{[%clk 0:00:43.7]} 35. Ne5 {[%clk 0:01:06.3]} 35... c5 {[%clk 0:00:41.7]} 36.
dxc5 {[%clk 0:01:02.8]} 36... bxc5 {[%clk 0:00:41.8]} 37. b5 {[%clk 0:01:02.8]}
37... Rd8 {[%clk 0:00:39.6]} 38. Rhg3 {[%clk 0:00:55.8]} 38... g5 {[%clk
0:00:40.1]} 39. fxg5 {[%clk 0:00:25]} 39... Qxe5 {[%clk 0:00:39.4]} 40. gxh6
{[%clk 0:00:25.2]} 40... Rh7 {[%clk 0:00:32]} 41. Rg8+ {[%clk 0:00:23]} 41...
Ke7 {[%clk 0:00:28.7]} 42. R8g7+ {[%clk 0:00:23.9]} 42... Rxg7 {[%clk
0:00:28.9]} 43. hxg7 {[%clk 0:00:21.2]} 43... Bf7 {[%clk 0:00:28.7]} 44. Be2
{[%clk 0:00:18.2]} 44... Qe4+ {[%clk 0:00:26.3]} 45. Qxe4 {[%clk 0:00:17.7]}
45... fxe4 {[%clk 0:00:27.2]} 46. Bh5 {[%clk 0:00:17.5]} 46... Rg8 {[%clk
0:00:26.6]} 47. Rc1 {[%clk 0:00:14.9]} 47... Bxh5 {[%clk 0:00:25.5]} 0-1

[Event "*** Titled Tuesday Blitz"]
[Site "Chess.com"]
[Date "2020.04.28"]
[Round "7"]
[White "JakeCarlosBanawa"]
[Black "picturesquecheck"]
[Result "0-1"]
[WhiteElo "2301"]
[BlackElo "2150"]
[TimeControl "180+1"]
[EndTime "11:18:35 PDT"]
[Termination "picturesquecheck won on time"]

1. d4 {[%clk 0:03:00.9]} 1... Nf6 {[%clk 0:02:58.7]} 2. c4 {[%clk 0:03:01]} 2...
e6 {[%clk 0:02:56.3]} 3. Nc3 {[%clk 0:03:00.9]} 3... Bb4 {[%clk 0:02:54.7]} 4.
Qc2 {[%clk 0:03:01.2]} 4... d5 {[%clk 0:02:53.9]} 5. cxd5 {[%clk 0:03:00.4]}
5... exd5 {[%clk 0:02:53]} 6. Bg5 {[%clk 0:02:46.9]} 6... h6 {[%clk 0:02:52.1]}
7. Bh4 {[%clk 0:02:46.4]} 7... c5 {[%clk 0:02:52.2]} 8. dxc5 {[%clk 0:02:39.6]}
8... Be6 {[%clk 0:02:49]} 9. e3 {[%clk 0:02:32.5]} 9... Nbd7 {[%clk 0:02:48.6]}
10. Nf3 {[%clk 0:02:14.1]} 10... Rc8 {[%clk 0:02:44.2]} 11. a3 {[%clk
0:02:08.5]} 11... Bxc3+ {[%clk 0:02:43.3]} 12. Qxc3 {[%clk 0:02:08.7]} 12... g5
{[%clk 0:02:42.9]} 13. Bg3 {[%clk 0:02:04.9]} 13... Nxc5 {[%clk 0:02:37.7]} 14.
b4 {[%clk 0:01:35.8]} 14... Nce4 {[%clk 0:02:32.9]} 15. Qd4 {[%clk 0:01:28]}
15... O-O {[%clk 0:02:21.5]} 16. Bd3 {[%clk 0:01:26.7]} 16... Qb6 {[%clk
0:02:13.7]} 17. O-O {[%clk 0:01:18.1]} 17... Rc3 {[%clk 0:01:50]} 18. Rfd1
{[%clk 0:01:03.6]} 18... Bg4 {[%clk 0:01:36.2]} 19. Be5 {[%clk 0:00:57.4]} 19...
Rc6 {[%clk 0:01:18.8]} 20. h3 {[%clk 0:00:51.6]} 20... Bxf3 {[%clk 0:01:18.1]}
21. gxf3 {[%clk 0:00:50.5]} 21... Nc3 {[%clk 0:01:01.6]} 22. Rdc1 {[%clk
0:00:42.6]} 22... Qxd4 {[%clk 0:00:58.3]} 23. Bxd4 {[%clk 0:00:40.9]} 23... Rfc8
{[%clk 0:00:48]} 24. Kf1 {[%clk 0:00:31.8]} 24... Ne8 {[%clk 0:00:22.2]} 25. Bf5
{[%clk 0:00:26.8]} 25... R8c7 {[%clk 0:00:21.3]} 26. Be5 {[%clk 0:00:26.3]}
26... Nd6 {[%clk 0:00:19.9]} 27. Bd3 {[%clk 0:00:17.5]} 27... a6 {[%clk
0:00:19.3]} 28. Rxc3 {[%clk 0:00:16.9]} 28... Rxc3 {[%clk 0:00:18.9]} 29. Bxc3
{[%clk 0:00:16.4]} 29... Rxc3 {[%clk 0:00:18.6]} 30. Ke2 {[%clk 0:00:17.2]}
30... Nc4 {[%clk 0:00:18.6]} 31. a4 {[%clk 0:00:15.3]} 31... Nb2 {[%clk
0:00:17.9]} 32. Bf5 {[%clk 0:00:15]} 32... Rc4 {[%clk 0:00:17.6]} 33. b5 {[%clk
0:00:14]} 33... axb5 {[%clk 0:00:17.3]} 34. axb5 {[%clk 0:00:13.9]} 34... Kg7
{[%clk 0:00:18.2]} 35. Rb1 {[%clk 0:00:13]} 35... Kf6 {[%clk 0:00:18.6]} 36. e4
{[%clk 0:00:10.2]} 36... Rb4 {[%clk 0:00:17.1]} 37. Kf1 {[%clk 0:00:07.8]} 37...
Rxb5 {[%clk 0:00:17.3]} 38. Kg2 {[%clk 0:00:06.3]} 38... Rb6 {[%clk 0:00:17.6]}
39. Bd7 {[%clk 0:00:04.9]} 39... Nc4 {[%clk 0:00:17.2]} 40. Rc1 {[%clk
0:00:03.4]} 40... Ne5 {[%clk 0:00:16.6]} 41. Bc8 {[%clk 0:00:01.2]} 41... d4
{[%clk 0:00:16.4]} 0-1

[Event "*** Titled Tuesday Blitz"]
[Site "Chess.com"]
[Date "2020.04.28"]
[Round "7"]
[White "putra48"]
[Black "eightbyeightchess"]
[Result "0-1"]
[WhiteElo "2601"]
[BlackElo "2508"]
[TimeControl "180+1"]
[EndTime "11:18:37 PDT"]
[Termination "eightbyeightchess won by resignation"]

1. e4 {[%clk 0:03:00.1]} 1... e6 {[%clk 0:02:59.6]} 2. d4 {[%clk 0:03:00.1]}
2... d5 {[%clk 0:03:00.2]} 3. Nc3 {[%clk 0:03:01]} 3... Nf6 {[%clk 0:02:59.7]}
4. e5 {[%clk 0:03:01]} 4... Nfd7 {[%clk 0:02:59.4]} 5. f4 {[%clk 0:03:01.9]}
5... c5 {[%clk 0:02:59.3]} 6. Nf3 {[%clk 0:03:02.8]} 6... Nc6 {[%clk 0:02:59.4]}
7. Be3 {[%clk 0:03:02.8]} 7... cxd4 {[%clk 0:02:59.6]} 8. Nxd4 {[%clk
0:03:02.9]} 8... Bc5 {[%clk 0:03:00.1]} 9. Qd2 {[%clk 0:03:03.3]} 9... a6 {[%clk
0:03:00.5]} 10. O-O-O {[%clk 0:03:01.9]} 10... O-O {[%clk 0:02:59.6]} 11. h4
{[%clk 0:03:01.9]} 11... Bxd4 {[%clk 0:02:59.5]} 12. Bxd4 {[%clk 0:03:02]} 12...
b5 {[%clk 0:03:00.1]} 13. h5 {[%clk 0:03:01.5]} 13... b4 {[%clk 0:02:58.2]} 14.
Ne2 {[%clk 0:03:01.8]} 14... Qa5 {[%clk 0:02:58]} 15. Kb1 {[%clk 0:03:01.9]}
15... Nxd4 {[%clk 0:02:58.2]} 16. Nxd4 {[%clk 0:03:02]} 16... Qb6 {[%clk
0:02:51]} 17. g4 {[%clk 0:02:56.4]} 17... Nc5 {[%clk 0:02:44.5]} 18. Bd3 {[%clk
0:02:48.7]} 18... a5 {[%clk 0:02:39.4]} 19. f5 {[%clk 0:02:46.4]} 19... exf5
{[%clk 0:02:18.1]} 20. gxf5 {[%clk 0:02:44]} 20... Ba6 {[%clk 0:02:04.4]} 21. f6
{[%clk 0:02:26]} 21... Bxd3 {[%clk 0:01:53.2]} 22. cxd3 {[%clk 0:02:23]} 22...
Ne6 {[%clk 0:00:51.9]} 23. Nf5 {[%clk 0:01:22.2]} 23... Kh8 {[%clk 0:00:25.9]}
24. fxg7+ {[%clk 0:00:47.7]} 24... Nxg7 {[%clk 0:00:26.8]} 25. Nxg7 {[%clk
0:00:47.8]} 25... Kxg7 {[%clk 0:00:27.4]} 26. Qg5+ {[%clk 0:00:43.7]} 26... Kh8
{[%clk 0:00:27]} 27. Rdf1 {[%clk 0:00:43.6]} 27... Rg8 {[%clk 0:00:26]} 28. Qf5
{[%clk 0:00:41.8]} 28... Ra7 {[%clk 0:00:21.6]} 29. d4 {[%clk 0:00:25.6]} 29...
b3 {[%clk 0:00:19.6]} 30. axb3 {[%clk 0:00:24]} 30... a4 {[%clk 0:00:18.4]} 31.
bxa4 {[%clk 0:00:23.2]} 31... Rg2 {[%clk 0:00:16.3]} 32. Qc8+ {[%clk 0:00:14.8]}
32... Kg7 {[%clk 0:00:15.1]} 33. Qc3 {[%clk 0:00:14.4]} 33... Rc7 {[%clk
0:00:14.4]} 34. h6+ {[%clk 0:00:14.2]} 34... Kf8 {[%clk 0:00:13.2]} 35. Qa3+
{[%clk 0:00:14.2]} 35... Ke8 {[%clk 0:00:13]} 36. Rc1 {[%clk 0:00:13.2]} 36...
Rb7 {[%clk 0:00:12.2]} 37. Rc2 {[%clk 0:00:12.6]} 37... Rxc2 {[%clk 0:00:11.1]}
38. Kxc2 {[%clk 0:00:13.5]} 38... Qxd4 {[%clk 0:00:11.5]} 39. Rd1 {[%clk
0:00:12.6]} 39... Rc7+ {[%clk 0:00:11.1]} 0-1

[Event "*** Titled Tuesday Blitz"]
[Site "Chess.com"]
[Date "2020.04.28"]
[Round "7"]
[White "Chichin_chao"]
[Black "Lunow"]
[Result "1-0"]
[WhiteElo "2366"]
[BlackElo "2207"]
[TimeControl "180+1"]
[EndTime "11:18:37 PDT"]
[Termination "Chichin_chao won on time"]

1. e4 {[%clk 0:03:00.9]} 1... c5 {[%clk 0:02:58.4]} 2. Nf3 {[%clk 0:03:01]} 2...
d6 {[%clk 0:02:57.5]} 3. c3 {[%clk 0:03:01.1]} 3... Nf6 {[%clk 0:02:55.3]} 4. h3
{[%clk 0:03:00.8]} 4... Nc6 {[%clk 0:02:50.1]} 5. Bd3 {[%clk 0:03:01]} 5... d5
{[%clk 0:02:47.5]} 6. exd5 {[%clk 0:03:00]} 6... Qxd5 {[%clk 0:02:45.6]} 7. Qe2
{[%clk 0:02:59.4]} 7... Qe6 {[%clk 0:02:41.9]} 8. O-O {[%clk 0:02:55.7]} 8...
Qxe2 {[%clk 0:02:39.8]} 9. Bxe2 {[%clk 0:02:56.6]} 9... e6 {[%clk 0:02:29]} 10.
Na3 {[%clk 0:02:51.1]} 10... Be7 {[%clk 0:02:27.7]} 11. Nc4 {[%clk 0:02:47.8]}
11... O-O {[%clk 0:02:27.1]} 12. d3 {[%clk 0:02:45.9]} 12... b6 {[%clk
0:02:23.1]} 13. a4 {[%clk 0:02:45]} 13... Bb7 {[%clk 0:02:21.7]} 14. a5 {[%clk
0:02:42.2]} 14... b5 {[%clk 0:02:17.2]} 15. a6 {[%clk 0:02:42]} 15... Bc8 {[%clk
0:02:15.2]} 16. Nce5 {[%clk 0:02:41.6]} 16... Nxe5 {[%clk 0:02:06.5]} 17. Nxe5
{[%clk 0:02:42.5]} 17... Bd6 {[%clk 0:02:05.3]} 18. Bf3 {[%clk 0:02:41.8]} 18...
Rb8 {[%clk 0:02:02.4]} 19. d4 {[%clk 0:02:38.4]} 19... cxd4 {[%clk 0:01:58.3]}
20. Nc6 {[%clk 0:02:37.5]} 20... Rb6 {[%clk 0:01:54.6]} 21. Nxd4 {[%clk
0:02:36.2]} 21... Rxa6 {[%clk 0:01:37.6]} 22. Rxa6 {[%clk 0:02:35.3]} 22... Bxa6
{[%clk 0:01:37]} 23. Bg5 {[%clk 0:02:35.8]} 23... b4 {[%clk 0:01:33.9]} 24. Ra1
{[%clk 0:02:34.6]} 24... bxc3 {[%clk 0:01:33.5]} 25. bxc3 {[%clk 0:02:31.2]}
25... Bc4 {[%clk 0:01:29.8]} 26. Rxa7 {[%clk 0:02:25.3]} 26... Rb8 {[%clk
0:01:26.3]} 27. g3 {[%clk 0:02:17.8]} 27... Nd5 {[%clk 0:01:23.2]} 28. Bd2
{[%clk 0:01:48.6]} 28... h6 {[%clk 0:01:18.6]} 29. Nc6 {[%clk 0:01:44.3]} 29...
Rb2 {[%clk 0:01:12.1]} 30. Na5 {[%clk 0:01:33]} 30... Bd3 {[%clk 0:01:01.8]} 31.
c4 {[%clk 0:01:12]} 31... Rxd2 {[%clk 0:00:36.7]} 32. cxd5 {[%clk 0:01:09.6]}
32... Bc5 {[%clk 0:00:33.9]} 33. Ra8+ {[%clk 0:01:03.9]} 33... Kh7 {[%clk
0:00:33.8]} 34. Nb3 {[%clk 0:01:00.1]} 34... Bxf2+ {[%clk 0:00:29.6]} 35. Kh1
{[%clk 0:01:00.5]} 35... Rb2 {[%clk 0:00:26.4]} 36. dxe6 {[%clk 0:00:54.5]}
36... fxe6 {[%clk 0:00:23.8]} 37. Nc1 {[%clk 0:00:47.7]} 37... Rb1 {[%clk
0:00:19.2]} 38. Kg2 {[%clk 0:00:47.3]} 38... Rxc1 {[%clk 0:00:15.9]} 39. Kxf2
{[%clk 0:00:46.5]} 39... Bc4 {[%clk 0:00:13.8]} 40. Rc8 {[%clk 0:00:44.3]} 40...
Rc2+ {[%clk 0:00:10.6]} 41. Ke3 {[%clk 0:00:44.4]} 41... Bd3 {[%clk 0:00:11.3]}
42. Re8 {[%clk 0:00:40.9]} 42... Rc3 {[%clk 0:00:05.2]} 43. Kd4 {[%clk
0:00:38.5]} 43... Ra3 {[%clk 0:00:05]} 44. Rxe6 {[%clk 0:00:37.4]} 44... Bf5
{[%clk 0:00:05.1]} 45. Re3 {[%clk 0:00:37]} 45... Rxe3 {[%clk 0:00:02.7]} 46.
Kxe3 {[%clk 0:00:37.9]} 1-0

[Event "*** Titled Tuesday Blitz"]
[Site "Chess.com"]
[Date "2020.04.28"]
[Round "7"]
[White "mbachez"]
[Black "AlexZambrano"]
[Result "1/2-1/2"]
[WhiteElo "2494"]
[BlackElo "2373"]
[TimeControl "180+1"]
[EndTime "11:18:39 PDT"]
[Termination "Game drawn by repetition"]

1. e4 {[%clk 0:03:00.9]} 1... d5 {[%clk 0:02:59.3]} 2. exd5 {[%clk 0:02:54.5]}
2... Qxd5 {[%clk 0:02:58.6]} 3. Nc3 {[%clk 0:02:54.5]} 3... Qd6 {[%clk
0:02:58.3]} 4. d4 {[%clk 0:02:54.2]} 4... c6 {[%clk 0:02:57.2]} 5. g3 {[%clk
0:02:41.4]} 5... Nf6 {[%clk 0:02:56.2]} 6. Bg2 {[%clk 0:02:41.5]} 6... Bg4
{[%clk 0:02:55.2]} 7. Nf3 {[%clk 0:02:41.3]} 7... Nbd7 {[%clk 0:02:54.7]} 8. h3
{[%clk 0:02:41.6]} 8... Bxf3 {[%clk 0:02:54.4]} 9. Bxf3 {[%clk 0:02:40.4]} 9...
e6 {[%clk 0:02:54.5]} 10. a3 {[%clk 0:02:37.1]} 10... Qc7 {[%clk 0:02:54.4]} 11.
Qe2 {[%clk 0:02:34.6]} 11... Bd6 {[%clk 0:02:54.5]} 12. h4 {[%clk 0:02:29.3]}
12... O-O-O {[%clk 0:02:44.9]} 13. Be3 {[%clk 0:02:27.8]} 13... Nd5 {[%clk
0:02:44.5]} 14. Ne4 {[%clk 0:02:23.6]} 14... Nxe3 {[%clk 0:02:34]} 15. Nxd6+
{[%clk 0:02:18.1]} 15... Qxd6 {[%clk 0:02:33.6]} 16. Qxe3 {[%clk 0:02:18.3]}
16... e5 {[%clk 0:02:32.2]} 17. O-O-O {[%clk 0:02:18.3]} 17... exd4 {[%clk
0:02:28.2]} 18. Rxd4 {[%clk 0:02:17.2]} 18... Qe5 {[%clk 0:02:14.2]} 19. Qc3
{[%clk 0:02:04.8]} 19... Qf6 {[%clk 0:02:00.4]} 20. Rhd1 {[%clk 0:02:01.7]}
20... Ne5 {[%clk 0:01:36.7]} 21. Bg2 {[%clk 0:01:16.6]} 21... Rxd4 {[%clk
0:01:28.2]} 22. Qxd4 {[%clk 0:01:15.7]} 22... Rd8 {[%clk 0:00:41]} 23. Qxa7
{[%clk 0:01:14.4]} 23... Rxd1+ {[%clk 0:00:40.4]} 24. Kxd1 {[%clk 0:01:13.8]}
24... Nc4 {[%clk 0:00:34.5]} 25. Qc5 {[%clk 0:00:49.8]} 25... Qd8+ {[%clk
0:00:22.6]} 26. Kc1 {[%clk 0:00:24]} 26... Qd2+ {[%clk 0:00:18.9]} 27. Kb1
{[%clk 0:00:24.1]} 27... Qd1+ {[%clk 0:00:18.3]} 28. Ka2 {[%clk 0:00:24.2]}
28... Qxc2 {[%clk 0:00:16.4]} 29. Bh3+ {[%clk 0:00:18.4]} 29... Kc7 {[%clk
0:00:13.4]} 30. Qe7+ {[%clk 0:00:17.8]} 30... Kb6 {[%clk 0:00:13.1]} 31. Qb4+
{[%clk 0:00:17.6]} 31... Kc7 {[%clk 0:00:13]} 32. Bf1 {[%clk 0:00:17.6]} 32...
Nd2 {[%clk 0:00:10.6]} 33. Qe7+ {[%clk 0:00:17.4]} 33... Kb6 {[%clk 0:00:10.1]}
34. Qe3+ {[%clk 0:00:16.6]} 34... Kc7 {[%clk 0:00:08.4]} 35. Bd3 {[%clk
0:00:15.6]} 35... Qb3+ {[%clk 0:00:05.6]} 36. Ka1 {[%clk 0:00:15.6]} 36... Qd1+
{[%clk 0:00:05.6]} 37. Ka2 {[%clk 0:00:16]} 37... Qb3+ {[%clk 0:00:05.9]} 38.
Ka1 {[%clk 0:00:16.2]} 38... Qd1+ {[%clk 0:00:06.3]} 39. Ka2 {[%clk 0:00:16.6]}
39... Qb3+ {[%clk 0:00:06.6]} 1/2-1/2

[Event "*** Titled Tuesday Blitz"]
[Site "Chess.com"]
[Date "2020.04.28"]
[Round "7"]
[White "tamarozi99"]
[Black "andy_rekt"]
[Result "0-1"]
[WhiteElo "1957"]
[BlackElo "2202"]
[TimeControl "180+1"]
[EndTime "11:18:39 PDT"]
[Termination "andy_rekt won on time"]

1. e4 {[%clk 0:03:00.9]} 1... c5 {[%clk 0:02:59.3]} 2. Nf3 {[%clk 0:03:00.1]}
2... Nc6 {[%clk 0:02:59.8]} 3. d4 {[%clk 0:02:59]} 3... cxd4 {[%clk 0:02:59.8]}
4. Nxd4 {[%clk 0:02:59.9]} 4... Nf6 {[%clk 0:02:53]} 5. Nc3 {[%clk 0:02:58.4]}
5... d6 {[%clk 0:02:53]} 6. Bg5 {[%clk 0:02:54]} 6... e6 {[%clk 0:02:48.9]} 7.
f3 {[%clk 0:02:48.9]} 7... a6 {[%clk 0:02:43.6]} 8. Qd2 {[%clk 0:02:48.2]} 8...
Be7 {[%clk 0:02:42.8]} 9. O-O-O {[%clk 0:02:45.2]} 9... Bd7 {[%clk 0:02:39.4]}
10. g4 {[%clk 0:02:44.2]} 10... b5 {[%clk 0:02:38.7]} 11. h4 {[%clk 0:02:32.9]}
11... Qb6 {[%clk 0:02:33.4]} 12. Be3 {[%clk 0:02:31.8]} 12... Qc7 {[%clk
0:02:30.4]} 13. h5 {[%clk 0:02:20.5]} 13... Ne5 {[%clk 0:02:16.4]} 14. g5 {[%clk
0:02:12.9]} 14... Ng8 {[%clk 0:02:16.4]} 15. f4 {[%clk 0:02:08.7]} 15... Nc4
{[%clk 0:02:15.7]} 16. Bxc4 {[%clk 0:02:08.3]} 16... Qxc4 {[%clk 0:02:16]} 17.
f5 {[%clk 0:01:48.8]} 17... b4 {[%clk 0:02:11.8]} 18. fxe6 {[%clk 0:01:30.1]}
18... fxe6 {[%clk 0:02:06.9]} 19. Nce2 {[%clk 0:01:21.2]} 19... d5 {[%clk
0:01:37.1]} 20. exd5 {[%clk 0:01:15]} 20... Qxa2 {[%clk 0:01:36.2]} 21. Nb3
{[%clk 0:00:54]} 21... Qa4 {[%clk 0:01:19.5]} 22. Qd4 {[%clk 0:00:44.9]} 22...
Rc8 {[%clk 0:00:55.8]} 23. Qxg7 {[%clk 0:00:30]} 23... Qxb3 {[%clk 0:00:55.5]}
24. Nd4 {[%clk 0:00:23.3]} 24... Qxe3+ {[%clk 0:00:51.5]} 25. Rd2 {[%clk
0:00:19.8]} 25... Bxg5 {[%clk 0:00:47.7]} 26. Rd1 {[%clk 0:00:14.3]} 26... Bf6
{[%clk 0:00:45]} 27. Qg4 {[%clk 0:00:12.1]} 27... e5 {[%clk 0:00:32]} 28. Qg2
{[%clk 0:00:04.3]} 28... exd4 {[%clk 0:00:20.6]} 29. Kb1 {[%clk 0:00:04.1]}
29... Ne7 {[%clk 0:00:18.5]} 30. Re2 {[%clk 0:00:04]} 30... Qg5 {[%clk
0:00:18.6]} 31. Qe4 {[%clk 0:00:01.9]} 31... O-O {[%clk 0:00:16.3]} 32. d6
{[%clk 0:00:02]} 32... Bf5 {[%clk 0:00:15.5]} 33. dxe7 {[%clk 0:00:01.3]} 33...
Bxe4 {[%clk 0:00:15.6]} 34. exf8=Q+ {[%clk 0:00:01.3]} 34... Rxf8 {[%clk
0:00:16.5]} 35. Rxe4 {[%clk 0:00:01.5]} 35... Bg7 {[%clk 0:00:16.5]} 36. Ree1
{[%clk 0:00:01.3]} 36... Qf5 {[%clk 0:00:16.4]} 0-1